[Event "EYCC Open-U18 2019"]
[Site "Bratislava"]
[Date "2019.08.06"]
[Round "5.15"]
[White "Erenberg, Ariel"]
[Black "Oboladze, Luka"]
[Result "1-0"]
[ECO "A05"]
[WhiteElo "2442"]
[BlackElo "2323"]
[Annotator "NA"]
[PlyCount "77"]
[EventDate "2019.08.02"]
[EventType "swiss"]
[EventCountry "SVK"]
[SourceTitle "playchess.com"]
[Source "ChessBase"]
[SourceQuality "1"]
[TimeControl "40/5400+30:1800+30"]

1. Nf3 {[%emt 0:00:00]} Nf6 {[%emt 0:00:00]} 2. c4 {[%emt 0:00:00]} e6 {[%emt 0:01:00]} 3. g3 {[%emt 0:00:21]} b6 {[%emt 0:01:01]} 4. Bg2 {[%emt 0:00:55]} Bb7 {[%emt 0:02:57]} 5. O-O {[%emt 0:00:20]} g6 {[%emt 0:01:40]} 6. Re1 {[%emt 0:11:44]} Bg7 {[%emt 0:00:38]} 7. Nc3 {[%emt 0:01:18]} Ne4 {[%emt 0:03:27]} 8. Nxe4 {[%emt 0:07:06]} Bxe4 {[%emt 0:00:07]} 9. d3 {[%emt 0:00:04]} Bb7 {[%emt 0:00:08]} 10. e4 {[%emt 0:01:27]} O-O {[%emt 0:03:10]} 11. d4 {[%emt 0:01:10]} d6 {[%emt 0:00:30]} 12. Bg5 {[%emt 0:06:56]} f6 {[%emt 0:14:08]} 13. Bd2 {[%emt 0:00:10]} e5 {[%emt 0:01:40]} 14. c5 {[%emt 0:06:40]} dxc5 {[%emt 0:10:20]} 15. dxc5 {[%emt 0:23:45]} Nc6 {[%emt 0:00:19]} 16. b4 {[%emt 0:00:44]} bxc5 {[%emt 0:08:11]} 17. bxc5 {[%emt 0:02:57]} Rb8 {[%emt 0:02:00]} 18. Qa4 {[%emt 0:06:36]} Qe7 {[%emt 0:09:21]} 19. Rab1 {[%emt 0:02:16]} Ba8 {[%emt 0:02:04]} 20. Be3 {[%emt 0:03:57]} Rfd8 {[%emt 0:02:44]} 21. Rxb8 {[%emt 0:00:25]} Rxb8 {[%emt 0:01:04]} 22. Bf1 {[%emt 0:00:07]} Rb4 {[%emt 0:12:33]} 23. Bc4+ {[%emt 0:00:07]} Kh8 {[%emt 0:01:06]} 24. Qc2 {[%emt 0:00:03]} Na5 {[%emt 0:01:29]} 25. Bd5 {[%emt 0:01:11]} Bxd5 {[%emt 0:06:30]} 26. exd5 {[%emt 0:00:08]} e4 {[%emt 0:01:25]} 27. Nd4 {[%emt 0:09:15]} f5 {[%emt 0:03:28]} 28. Ne6 {[%emt 0:03:07]} Nc4 {[%emt 0:02:13]} 29. Rb1 {[%emt 0:02:06]} Nxe3 {[%emt 0:08:00]} 30. fxe3 {[%emt 0:00:03]} a5 {[%emt 0:00:23]} 31. Rxb4 {[%emt 0:02:42]} axb4 {[%emt 0:00:04]} 32. Qa4 {[%emt 0:00:16]} h5 {[%emt 0:01:27]} 33. Qxb4 {[%emt 0:00:56]} Be5 {[%emt 0:00:07]} 34. Qb8+ {[%emt 0:02:20]} Kh7 {[%emt 0:00:02]} 35. Qd8 {[%emt 0:02:06]} Qxd8 {[%emt 0:01:23]} 36. Nxd8 {[%emt 0:00:01]} Kg7 {[%emt 0:00:35]} 37. Nc6 {[%emt 0:00:19]} Kf6 {[%emt 0:00:43]} 38. a4 {[%emt 0:01:32]} Bb2 {[%emt 0:00:07]} 39. a5 {[%emt 0:01:12]} 1-0

[Event "EYCC Open-U18 2019"]
[Site "Bratislava"]
[Date "2019.08.06"]
[Round "5.16"]
[White "Boev, Viktor"]
[Black "Gaifullin, Artur"]
[Result "0-1"]
[ECO "B10"]
[WhiteElo "2246"]
[BlackElo "2453"]
[Annotator "ChessBase"]
[PlyCount "62"]
[EventDate "2019.08.02"]
[EventType "swiss"]
[EventCountry "SVK"]
[SourceTitle "playchess.com"]
[Source "ChessBase"]
[SourceQuality "1"]
[TimeControl "40/5400+30:1800+30"]

1. e4 {[%emt 0:00:00]} c6 {[%emt 0:00:00]} 2. c4 {[%emt 0:00:00]} d5 {[%emt 0:00:00]} 3. exd5 {[%emt 0:00:26]} cxd5 {[%emt 0:00:00]} 4. cxd5 {[%emt 0:00:08]} Nf6 {[%emt 0:00:00]} 5. Bb5+ {[%emt 0:00:16]} Nbd7 {[%emt 0:00:26]} 6. Nf3 {[%emt 0:01:22]} a6 {[%emt 0:01:15]} 7. Ba4 {[%emt 0:00:14]} b5 {[%emt 0:02:02]} 8. Bb3 {[%emt 0:00:08]} Nc5 {[%emt 0:00:55]} 9. Bc2 {[%emt 0:01:56]} Bb7 {[%emt 0:01:52]} 10. O-O {[%emt 0:01:07]} Nxd5 {[%emt 0:02:40]} 11. d4 {[%emt 0:00:36]} Nd7 {[%emt 0:00:16]} 12. a4 {[%emt 0:06:38]} b4 {[%emt 0:01:03]} 13. Nbd2 {[%emt 0:01:34]} g6 {[%emt 0:03:07]} 14. Nb3 {[%emt 0:00:36]} Bg7 {[%emt 0:00:19]} 15. Nfd2 {[%emt 0:07:06]} O-O {[%emt 0:01:20]} 16. Nc4 {[%emt 0:10:33]} Rc8 {[%emt 0:02:31]} 17. Nca5 {[%emt 0:01:40]} Ba8 {[%emt 0:00:07]} 18. Bd3 {[%emt 0:00:36]} Qb6 {[%emt 0:01:55]} 19. Qe2 {[%emt 0:03:30]} Rxc1 {[%emt 0:09:58]} 20. Rfxc1 {[%emt 0:00:37]} Nf4 {[%emt 0:02:06]} 21. Qxe7 {[%emt 0:19:54]} Bxd4 {[%emt 0:10:59]} 22. Nxd4 {[%emt 0:07:36]} Qxd4 {[%emt 0:00:46]} 23. Bf1 {[%emt 0:00:33]} Ne5 {[%emt 0:00:11]} 24. Qc5 {[%emt 0:11:26]} Nh3+ {[%emt 0:10:39]} 25. Kh1 {[%emt 0:00:16]} Nxf2+ {[%emt 0:00:54]} 26. Kg1 {[%emt 0:00:07]} Nh3+ {[%emt 0:02:09]} 27. Kh1 {[%emt 0:00:06]} Qf4 {[%emt 0:00:47]} 28. Rc4 {[%emt 0:00:28]} Nxc4 {[%emt 0:01:37]} 29. Nxc4 {[%emt 0:00:27]} Re8 {[%emt 0:01:04]} 30. Qxb4 {[%emt 0:08:57]} Qf2 {[%emt 0:00:32]} 31. Qb6 {[%emt 0:00:07]} Bxg2+ {[%emt 0:00:08]} 0-1

[Event "EYCC Open-U18 2019"]
[Site "Bratislava"]
[Date "2019.08.06"]
[Round "5.17"]
[White "Mitsis, Georgios"]
[Black "Stevanic, David"]
[Result "0-1"]
[ECO "E81"]
[WhiteElo "2399"]
[BlackElo "2306"]
[Annotator "NA"]
[PlyCount "120"]
[EventDate "2019.08.02"]
[EventType "swiss"]
[EventCountry "SVK"]
[SourceTitle "playchess.com"]
[Source "ChessBase"]
[SourceQuality "1"]
[TimeControl "40/5400+30:1800+30"]

1. d4 {[%emt 0:00:00]} Nf6 {[%emt 0:00:00]} 2. c4 {[%emt 0:00:00]} g6 {[%emt 0:00:00]} 3. Nc3 {[%emt 0:00:00]} Bg7 {[%emt 0:00:00]} 4. e4 {[%emt 0:00:00]} d6 {[%emt 0:00:00]} 5. f3 {[%emt 0:00:11]} O-O {[%emt 0:00:24]} 6. Be3 {[%emt 0:00:09]} c5 {[%emt 0:00:19]} 7. Nge2 {[%emt 0:00:16]} Nc6 {[%emt 0:00:20]} 8. d5 {[%emt 0:00:17]} Ne5 {[%emt 0:00:07]} 9. Ng3 {[%emt 0:00:13]} h5 {[%emt 0:00:05]} 10. Be2 {[%emt 0:00:27]} h4 {[%emt 0:00:05]} 11. Nf1 {[%emt 0:00:13]} e6 {[%emt 0:00:06]} 12. Bg5 {[%emt 0:00:29]} h3 {[%emt 0:05:42]} 13. gxh3 {[%emt 0:00:37]} exd5 {[%emt 0:05:19]} 14. Nxd5 {[%emt 0:00:52]} Nc6 {[%emt 0:04:43]} 15. Qd2 {[%emt 0:06:47]} Nd4 {[%emt 0:09:10]} 16. h4 {[%emt 0:01:17]} Ne6 {[%emt 0:06:24]} 17. Nfe3 {[%emt 0:03:26]} Nxg5 {[%emt 0:01:52]} 18. hxg5 {[%emt 0:01:26]} Nxd5 {[%emt 0:03:20]} 19. Nxd5 {[%emt 0:00:14]} Be6 {[%emt 0:00:05]} 20. Nc3 {[%emt 0:02:54]} a6 {[%emt 0:02:59]} 21. h4 {[%emt 0:03:28]} b5 {[%emt 0:02:29]} 22. cxb5 {[%emt 0:08:43]} axb5 {[%emt 0:00:57]} 23. Bxb5 {[%emt 0:01:53]} Qa5 {[%emt 0:03:48]} 24. Be2 {[%emt 0:08:54]} Rfb8 {[%emt 0:06:49]} 25. Rc1 {[%emt 0:01:01]} Bxc3 {[%emt 0:04:27]} 26. bxc3 {[%emt 0:03:35]} Qxa2 {[%emt 0:00:26]} 27. Qe3 {[%emt 0:06:56]} Rb2 {[%emt 0:05:36]} 28. Rf1 {[%emt 0:02:22]} d5 {[%emt 0:10:30]} 29. exd5 {[%emt 0:14:50]} Bxd5 {[%emt 0:08:47]} 30. Rd1 {[%emt 0:03:36]} Bc4 {[%emt 0:07:10]} 31. Rf2 {[%emt 0:04:09]} Bxe2 {[%emt 0:07:06]} 32. Rxe2 {[%emt 0:00:05]} Rxe2+ {[%emt 0:00:06]} 33. Qxe2 {[%emt 0:00:05]} Qa4 {[%emt 0:00:14]} 34. Kf1 {[%emt 0:06:43]} Re8 {[%emt 0:01:20]} 35. Qd2 {[%emt 0:00:14]} Qxh4 {[%emt 0:01:01]} 36. Kg2 {[%emt 0:00:22]} Re5 {[%emt 0:01:14]} 37. Qd8+ {[%emt 0:07:31]} Kh7 {[%emt 0:00:07]} 38. Rd2 {[%emt 0:00:15]} Rxg5+ {[%emt 0:01:21]} 39. Kf1 {[%emt 0:00:05]} Qh1+ {[%emt 0:02:22]} 40. Ke2 {[%emt 0:00:00]} Rg2+ {[%emt 0:00:00]} 41. Kd3 {[%emt 0:00:11]} Rxd2+ {[%emt 0:03:12]} 42. Kxd2 {[%emt 0:00:10]} Qxf3 {[%emt 0:00:04]} 43. Qe7 {[%emt 0:00:47]} Qd5+ {[%emt 0:00:42]} 44. Kc1 {[%emt 0:00:33]} Kg7 {[%emt 0:00:11]} 45. Qe2 {[%emt 0:01:26]} Kf6 {[%emt 0:00:56]} 46. Qf2+ {[%emt 0:00:13]} Qf5 {[%emt 0:00:14]} 47. Qh2 {[%emt 0:00:20]} Kg7 {[%emt 0:01:36]} 48. Kb2 {[%emt 0:00:07]} g5 {[%emt 0:00:16]} 49. Qh5 {[%emt 0:00:16]} Qf4 {[%emt 0:00:25]} 50. Kb3 {[%emt 0:00:16]} Qe5 {[%emt 0:02:12]} 51. Kc4 {[%emt 0:00:28]} f6 {[%emt 0:00:29]} 52. Qd1 {[%emt 0:01:27]} Kg6 {[%emt 0:00:36]} 53. Qb1+ {[%emt 0:01:27]} f5 {[%emt 0:01:46]} 54. Qb6+ {[%emt 0:00:42]} Kh5 {[%emt 0:00:05]} 55. Qa7 {[%emt 0:00:35]} Qe6+ {[%emt 0:01:26]} 56. Kb5 {[%emt 0:00:46]} Qb3+ {[%emt 0:00:21]} 57. Kxc5 {[%emt 0:00:06]} Qxc3+ {[%emt 0:00:03]} 58. Kd5 {[%emt 0:00:06]} Qe1 {[%emt 0:00:40]} 59. Qa3 {[%emt 0:00:49]} Kg4 {[%emt 0:00:33]} 60. Qa4+ {[%emt 0:00:58]} Qe4+ {[%emt 0:00:31] Ke5} 0-1

[Event "EYCC Open-U18 2019"]
[Site "Bratislava"]
[Date "2019.08.06"]
[Round "5.18"]
[White "Chylewski, Patryk"]
[Black "Godzwon, Iwo"]
[Result "0-1"]
[ECO "E11"]
[WhiteElo "2376"]
[BlackElo "2285"]
[Annotator "NA"]
[PlyCount "82"]
[EventDate "2019.08.02"]
[EventType "swiss"]
[EventCountry "SVK"]
[SourceTitle "playchess.com"]
[Source "ChessBase"]
[SourceQuality "1"]
[TimeControl "40/5400+30:1800+30"]

1. d4 {[%emt 0:00:00]} Nf6 {[%emt 0:00:00]} 2. c4 {[%emt 0:00:00]} e6 {[%emt 0:00:00]} 3. Nf3 {[%emt 0:00:24]} Bb4+ {[%emt 0:00:00]} 4. Nbd2 {[%emt 0:00:43]} O-O {[%emt 0:00:00]} 5. a3 {[%emt 0:00:19]} Be7 {[%emt 0:00:02]} 6. e4 {[%emt 0:00:39]} d6 {[%emt 0:00:07]} 7. b3 {[%emt 0:05:52]} e5 {[%emt 0:00:04]} 8. Bb2 {[%emt 0:01:43]} exd4 {[%emt 0:01:22]} 9. Nxd4 {[%emt 0:00:50]} Re8 {[%emt 0:14:56]} 10. Be2 {[%emt 0:06:52]} Bd7 {[%emt 0:04:56]} 11. O-O {[%emt 0:04:36]} Nc6 {[%emt 0:00:07]} 12. Qc2 {[%emt 0:01:51]} Nxd4 {[%emt 0:02:10]} 13. Bxd4 {[%emt 0:01:37]} Bc6 {[%emt 0:01:45]} 14. f4 {[%emt 0:09:38]} Nd7 {[%emt 0:12:31]} 15. Rae1 {[%emt 0:01:39]} Bf6 {[%emt 0:11:15]} 16. Bf2 {[%emt 0:01:10]} a5 {[%emt 0:00:41]} 17. Bf3 {[%emt 0:05:08]} Nf8 {[%emt 0:08:51]} 18. Bg4 {[%emt 0:18:17]} Ne6 {[%emt 0:03:58]} 19. g3 {[%emt 0:03:52]} Bd7 {[%emt 0:04:29]} 20. Bxe6 {[%emt 0:05:54]} Rxe6 {[%emt 0:07:42]} 21. Re2 {[%emt 0:03:27]} Bc6 {[%emt 0:01:03]} 22. Rfe1 {[%emt 0:00:48]} Qd7 {[%emt 0:01:02]} 23. Qd3 {[%emt 0:04:13]} Rae8 {[%emt 0:04:50]} 24. a4 {[%emt 0:03:30]} b6 {[%emt 0:00:52]} 25. Nf3 {[%emt 0:05:35]} Qe7 {[%emt 0:01:07]} 26. Nd2 {[%emt 0:01:47]} g6 {[%emt 0:00:34]} 27. Re3 {[%emt 0:02:13]} Bb2 {[%emt 0:03:50]} 28. R3e2 {[%emt 0:07:22]} f5 {[%emt 0:00:27]} 29. Qc2 {[%emt 0:00:50]} Bf6 {[%emt 0:00:27]} 30. c5 {[%emt 0:02:24]} bxc5 {[%emt 0:01:15]} 31. e5 {[%emt 0:00:25]} dxe5 {[%emt 0:00:23]} 32. fxe5 {[%emt 0:01:18]} Qd7 {[%emt 0:00:49]} 33. Qxc5 {[%emt 0:00:38]} Be7 {[%emt 0:02:33]} 34. Qd4 {[%emt 0:00:18]} Bb4 {[%emt 0:02:45]} 35. Qxd7 {[%emt 0:00:33]} Bxd7 {[%emt 0:00:04]} 36. Bd4 {[%emt 0:00:45]} Rd8 {[%emt 0:00:17]} 37. Bb2 {[%emt 0:00:36]} Bc8 {[%emt 0:04:44]} 38. Bc1 {[%emt 0:00:34]} Ba6 {[%emt 0:00:06]} 39. Rg2 {[%emt 0:00:29]} Bc5+ {[%emt 0:00:04]} 40. Kh1 {[%emt 0:00:00]} Bb7 {[%emt 0:00:00]} 41. Nc4 {[%emt 0:01:10]} Rd3 {[%emt 0:01:10]} 0-1

[Event "EYCC Open-U18 2019"]
[Site "Bratislava"]
[Date "2019.08.06"]
[Round "5.19"]
[White "Parkhov, Yair"]
[Black "Kotau, Arseni"]
[Result "1/2-1/2"]
[ECO "E73"]
[WhiteElo "2354"]
[BlackElo "2227"]
[Annotator "NA"]
[PlyCount "45"]
[EventDate "2019.08.02"]
[EventType "swiss"]
[EventCountry "SVK"]
[SourceTitle "playchess.com"]
[Source "ChessBase"]
[SourceQuality "1"]
[TimeControl "40/5400+30:1800+30"]

1. d4 {[%emt 0:00:00]} Nf6 {[%emt 0:00:00]} 2. c4 {[%emt 0:00:00]} g6 {[%emt 0:00:00]} 3. Nc3 {[%emt 0:00:00]} Bg7 {[%emt 0:00:00]} 4. e4 {[%emt 0:00:00]} d6 {[%emt 0:00:00]} 5. Be2 {[%emt 0:00:00]} O-O {[%emt 0:00:00]} 6. Be3 {[%emt 0:00:00]} c5 {[%emt 0:00:00]} 7. d5 {[%emt 0:00:06]} e6 {[%emt 0:00:04]} 8. Nf3 {[%emt 0:00:05]} exd5 {[%emt 0:00:09]} 9. cxd5 {[%emt 0:00:06]} b5 {[%emt 0:00:04]} 10. e5 {[%emt 0:00:15]} Ng4 {[%emt 0:00:05]} 11. Bg5 {[%emt 0:00:16]} Qb6 {[%emt 0:00:08]} 12. exd6 {[%emt 0:00:54]} b4 {[%emt 0:00:18]} 13. Ne4 {[%emt 0:00:56]} Nd7 {[%emt 0:00:36]} 14. Nfd2 {[%emt 0:01:29]} Ngf6 {[%emt 0:00:19]} 15. Nc4 {[%emt 0:04:03]} Qb8 {[%emt 0:00:33]} 16. Bxf6 {[%emt 0:02:13]} Bxf6 {[%emt 0:23:07]} 17. O-O {[%emt 0:02:29]} Re8 {[%emt 0:06:19]} 18. Qc2 {[%emt 0:10:49]} Ba6 {[%emt 0:03:36]} 19. Bg4 {[%emt 0:03:41]} Rxe4 {[%emt 0:23:02]} 20. Qxe4 {[%emt 0:00:49]} Nb6 {[%emt 0:01:08]} 21. Be2 {[%emt 0:17:29]} Bxc4 {[%emt 0:00:58]} 22. Bxc4 {[%emt 0:00:08]} Bxb2 {[%emt 0:00:23]} 23. Rad1 {[%emt 0:19:41]} 1/2-1/2

[Event "EYCC Open-U18 2019"]
[Site "Bratislava"]
[Date "2019.08.06"]
[Round "5.20"]
[White "Maksimovic, Bojan"]
[Black "Santryan, Davit"]
[Result "1-0"]
[ECO "C95"]
[WhiteElo "2326"]
[BlackElo "2167"]
[Annotator "NA"]
[PlyCount "95"]
[EventDate "2019.08.02"]
[EventType "swiss"]
[EventCountry "SVK"]
[SourceTitle "playchess.com"]
[Source "ChessBase"]
[SourceQuality "1"]
[TimeControl "40/5400+30:1800+30"]

1. e4 {[%emt 0:00:00]} e5 {[%emt 0:00:35]} 2. Nf3 {[%emt 0:00:00]} Nc6 {[%emt 0:00:07]} 3. Bb5 {[%emt 0:00:00]} a6 {[%emt 0:00:46]} 4. Ba4 {[%emt 0:00:03]} Nf6 {[%emt 0:00:07]} 5. O-O {[%emt 0:00:12]} Be7 {[%emt 0:01:28]} 6. Re1 {[%emt 0:00:09]} b5 {[%emt 0:00:22]} 7. Bb3 {[%emt 0:00:02]} d6 {[%emt 0:00:53]} 8. c3 {[%emt 0:00:13]} O-O {[%emt 0:00:07]} 9. h3 {[%emt 0:00:06]} Nb8 {[%emt 0:00:18]} 10. d4 {[%emt 0:00:09]} Nbd7 {[%emt 0:00:05]} 11. Nbd2 {[%emt 0:00:07]} Bb7 {[%emt 0:00:08]} 12. Bc2 {[%emt 0:00:07]} Re8 {[%emt 0:00:27]} 13. Nf1 {[%emt 0:00:05]} Bf8 {[%emt 0:00:05]} 14. Ng3 {[%emt 0:00:07]} g6 {[%emt 0:00:40]} 15. a4 {[%emt 0:00:21]} c5 {[%emt 0:00:45]} 16. d5 {[%emt 0:01:11]} c4 {[%emt 0:01:30]} 17. Bg5 {[%emt 0:00:41]} h6 {[%emt 0:05:02]} 18. Be3 {[%emt 0:00:08]} Nc5 {[%emt 0:01:09]} 19. Qd2 {[%emt 0:07:59]} h5 {[%emt 0:06:46]} 20. Ng5 {[%emt 0:05:06]} Bg7 {[%emt 0:03:53]} 21. Rf1 {[%emt 0:08:34]} Rf8 {[%emt 0:07:40]} 22. Kh1 {[%emt 0:24:03]} Rb8 {[%emt 0:13:04]} 23. Ne2 {[%emt 0:05:40]} Qc7 {[%emt 0:09:56]} 24. f4 {[%emt 0:09:16]} exf4 {[%emt 0:06:26]} 25. Rxf4 {[%emt 0:00:28]} Qe7 {[%emt 0:03:58]} 26. Raf1 {[%emt 0:11:16]} Ncd7 {[%emt 0:06:03]} 27. Nd4 {[%emt 0:08:36]} Rbe8 {[%emt 0:10:47]} 28. R4f3 {[%emt 0:08:01]} Ne5 {[%emt 0:05:23]} 29. R3f2 {[%emt 0:00:19]} Nd3 {[%emt 0:02:46]} 30. Bxd3 {[%emt 0:00:10]} cxd3 {[%emt 0:00:07]} 31. Bf4 {[%emt 0:00:58]} Nxe4 {[%emt 0:05:05]} 32. Nxe4 {[%emt 0:00:10]} Qxe4 {[%emt 0:00:03]} 33. Bxd6 {[%emt 0:00:42]} Bxd5 {[%emt 0:00:32]} 34. Bxf8 {[%emt 0:00:14]} Bxf8 {[%emt 0:00:29]} 35. axb5 {[%emt 0:01:29]} axb5 {[%emt 0:01:35]} 36. Rd1 {[%emt 0:04:22]} Bd6 {[%emt 0:01:34]} 37. Nf3 {[%emt 0:02:34]} Qe3 {[%emt 0:04:55]} 38. Re1 {[%emt 0:03:01]} Bf4 {[%emt 0:00:47]} 39. Rxe3 {[%emt 0:00:13]} Rxe3 {[%emt 0:00:23]} 40. Qd1 {[%emt 0:00:00]} Bg3 {[%emt 0:00:00]} 41. Rf1 {[%emt 0:03:07]} Be4 {[%emt 0:02:01]} 42. Ng1 {[%emt 0:06:25]} Bh4 {[%emt 0:05:19]} 43. Rf4 {[%emt 0:01:53]} Bg5 {[%emt 0:02:46]} 44. Rxe4 {[%emt 0:00:17]} Rxe4 {[%emt 0:00:03]} 45. Nf3 {[%emt 0:00:15]} d2 {[%emt 0:01:06]} 46. Nxd2 {[%emt 0:00:17]} Re6 {[%emt 0:00:43]} 47. Nf3 {[%emt 0:00:08]} Bf4 {[%emt 0:00:06]} 48. Qd8+ {[%emt 0:00:39]} 1-0

[Event "EYCC Open-U18 2019"]
[Site "Bratislava"]
[Date "2019.08.06"]
[Round "5.21"]
[White "Garayev, Kanan"]
[Black "Anghelus, Alin-Gabriel"]
[Result "0-1"]
[ECO "D02"]
[WhiteElo "2351"]
[BlackElo "2107"]
[Annotator "NA"]
[PlyCount "112"]
[EventDate "2019.08.02"]
[EventType "swiss"]
[EventCountry "SVK"]
[SourceTitle "playchess.com"]
[Source "ChessBase"]
[SourceQuality "1"]
[TimeControl "40/5400+30:1800+30"]

1. d4 {[%emt 0:00:00]} d5 {[%emt 0:00:00]} 2. Nf3 {[%emt 0:00:00]} e6 {[%emt 0:00:13]} 3. c4 {[%emt 0:03:20]} a6 {[%emt 0:01:33]} 4. cxd5 {[%emt 0:00:37]} exd5 {[%emt 0:00:09]} 5. Nc3 {[%emt 0:00:04]} c6 {[%emt 0:00:14]} 6. e4 {[%emt 0:00:15]} dxe4 {[%emt 0:00:06]} 7. Ng5 {[%emt 0:00:07]} h6 {[%emt 0:00:05]} 8. Ngxe4 {[%emt 0:00:53]} Nf6 {[%emt 0:02:47]} 9. Bd3 {[%emt 0:00:46]} Be6 {[%emt 0:04:18]} 10. O-O {[%emt 0:04:01]} Nbd7 {[%emt 0:02:34]} 11. Bf4 {[%emt 0:04:18]} Be7 {[%emt 0:03:30]} 12. Nd6+ {[%emt 0:08:11]} Bxd6 {[%emt 0:00:09]} 13. Bxd6 {[%emt 0:00:05]} Nb6 {[%emt 0:00:15]} 14. Bc5 {[%emt 0:02:38]} Qc7 {[%emt 0:01:18]} 15. a4 {[%emt 0:02:59]} Nbd5 {[%emt 0:03:08]} 16. a5 {[%emt 0:08:00]} Ng4 {[%emt 0:04:29]} 17. g3 {[%emt 0:01:09]} Nf4 {[%emt 0:01:25]} 18. Qf3 {[%emt 0:06:43]} Nxd3 {[%emt 0:07:59]} 19. Qxd3 {[%emt 0:01:48]} Nf6 {[%emt 0:01:03]} 20. f4 {[%emt 0:02:21]} g6 {[%emt 0:03:18]} 21. d5 {[%emt 0:05:47]} Nxd5 {[%emt 0:01:16]} 22. Nxd5 {[%emt 0:00:42]} cxd5 {[%emt 0:01:30]} 23. Rfc1 {[%emt 0:09:52]} Rc8 {[%emt 0:02:21]} 24. Qd4 {[%emt 0:02:28]} Rg8 {[%emt 0:01:01]} 25. Rc3 {[%emt 0:03:34]} Kd7 {[%emt 0:04:33]} 26. Re1 {[%emt 0:03:14]} Qxa5 {[%emt 0:02:30]} 27. b4 {[%emt 0:02:32]} Qd8 {[%emt 0:01:51]} 28. Bb6 {[%emt 0:07:45]} Qe7 {[%emt 0:01:42]} 29. Rce3 {[%emt 0:00:52]} Rc6 {[%emt 0:06:21]} 30. Bc5 {[%emt 0:12:00]} Qd8 {[%emt 0:03:15]} 31. Re5 {[%emt 0:00:45]} Kc7 {[%emt 0:02:09]} 32. Rc1 {[%emt 0:01:01]} Qd7 {[%emt 0:04:04]} 33. Ree1 {[%emt 0:00:35]} b5 {[%emt 0:02:38]} 34. Ra1 {[%emt 0:01:32]} Kb7 {[%emt 0:00:13]} 35. Ra3 {[%emt 0:01:04]} h5 {[%emt 0:00:21]} 36. Re2 {[%emt 0:01:21]} Re8 {[%emt 0:01:39]} 37. Rae3 {[%emt 0:01:12]} Rec8 {[%emt 0:00:31]} 38. Ra2 {[%emt 0:00:30]} Qc7 {[%emt 0:05:07]} 39. Rea3 {[%emt 0:01:03]} Rxc5 {[%emt 0:02:08]} 40. bxc5 {[%emt 0:00:00]} Qxc5 {[%emt 0:00:00]} 41. Qxc5 {[%emt 0:00:10]} Rxc5 {[%emt 0:00:14]} 42. Rxa6 {[%emt 0:00:22]} d4 {[%emt 0:00:57]} 43. Ra1 {[%emt 0:05:09]} Rc3 {[%emt 0:02:18]} 44. Rd6 {[%emt 0:03:07]} d3 {[%emt 0:00:24]} 45. Kf2 {[%emt 0:01:10]} Kc7 {[%emt 0:00:06]} 46. Rd4 {[%emt 0:01:31]} Kc6 {[%emt 0:00:22]} 47. Ke3 {[%emt 0:01:12]} Bc4 {[%emt 0:01:41]} 48. Rd8 {[%emt 0:03:36]} Rc2 {[%emt 0:01:00]} 49. Rd1 {[%emt 0:03:33]} Rxh2 {[%emt 0:02:34]} 50. Kd4 {[%emt 0:02:09]} Kc7 {[%emt 0:04:10]} 51. Ra8 {[%emt 0:00:44]} Kd6 {[%emt 0:02:33]} 52. Ra6+ {[%emt 0:05:18]} Ke7 {[%emt 0:00:14]} 53. Rb6 {[%emt 0:01:30]} Rg2 {[%emt 0:00:19]} 54. Ke5 {[%emt 0:01:24]} Re2+ {[%emt 0:00:17]} 55. Kd4 {[%emt 0:00:04]} Kf8 {[%emt 0:00:16]} 56. Rg1 {[%emt 0:01:18]} d2 {[%emt 0:01:44]} 0-1

[Event "EYCC Open-U18 2019"]
[Site "Bratislava"]
[Date "2019.08.06"]
[Round "5.22"]
[White "Zabolotnov, Evgeny"]
[Black "Miesbauer, Jan"]
[Result "1/2-1/2"]
[ECO "D37"]
[WhiteElo "2284"]
[BlackElo "2409"]
[Annotator "NA"]
[PlyCount "46"]
[EventDate "2019.08.02"]
[EventType "swiss"]
[EventCountry "SVK"]
[SourceTitle "playchess.com"]
[Source "ChessBase"]
[SourceQuality "1"]
[TimeControl "40/5400+30:1800+30"]

1. Nf3 {[%emt 0:00:00]} Nf6 {[%emt 0:00:00]} 2. c4 {[%emt 0:00:00]} e6 {[%emt 0:00:14]} 3. d4 {[%emt 0:00:23]} d5 {[%emt 0:00:06]} 4. Nc3 {[%emt 0:00:10]} a6 {[%emt 0:00:54]} 5. cxd5 {[%emt 0:00:37]} exd5 {[%emt 0:00:07]} 6. Bg5 {[%emt 0:01:23]} Be6 {[%emt 0:00:29]} 7. e3 {[%emt 0:01:25]} Nbd7 {[%emt 0:00:31]} 8. Bd3 {[%emt 0:00:58]} Bd6 {[%emt 0:00:26]} 9. O-O {[%emt 0:00:37]} O-O {[%emt 0:00:49]} 10. Qc2 {[%emt 0:03:06]} h6 {[%emt 0:00:42]} 11. Bf4 {[%emt 0:01:14]} Qe7 {[%emt 0:01:09]} 12. Rac1 {[%emt 0:03:09]} Rfe8 {[%emt 0:02:16]} 13. Bxd6 {[%emt 0:02:01]} Qxd6 {[%emt 0:00:16]} 14. Na4 {[%emt 0:01:15]} c6 {[%emt 0:01:19]} 15. Nc5 {[%emt 0:04:49]} Nxc5 {[%emt 0:02:42]} 16. Qxc5 {[%emt 0:00:10]} Qxc5 {[%emt 0:01:49]} 17. Rxc5 {[%emt 0:00:06]} Ne4 {[%emt 0:01:07]} 18. Bxe4 {[%emt 0:13:07]} dxe4 {[%emt 0:00:06]} 19. Nd2 {[%emt 0:00:00]} Bd5 {[%emt 0:00:52]} 20. Nc4 {[%emt 0:03:39]} Rab8 {[%emt 0:00:48]} 21. Nd2 {[%emt 0:01:16]} f5 {[%emt 0:14:18]} 22. b3 {[%emt 0:02:31]} Re6 {[%emt 0:06:24]} 23. Rc2 {[%emt 0:01:22]} Rf8 {[%emt 0:10:32]} 1/2-1/2